bitfinex-derivatives/quotes_BTCF0:USTF0_20241221
["timestamp","ask_amount","ask_price","bid_price","bid_amount"]
[1734796196869,0.051242,97610.0,97608.0,0.053243]
[1734796197177,0.1228128,97612.0,97609.0,0.051242]
[1734796197365,0.051239,97615.0,97609.0,0.051242]
[1734796197570,0.05124,97614.0,97609.0,0.051242]
[1734796198475,0.153516,97617.0,97609.0,0.051242]
[1734796198476,0.002,97610.0,97609.0,0.051242]
[1734796198773,0.05124,97613.0,97609.0,0.052242]
[1734796199075,0.12281002,97611.0,97609.0,0.23479076]
[1734796199764,0.12281002,97611.0,97609.0,0.23379076]
[1734796199961,0.12281002,97611.0,97609.0,0.23479076]
[1734796200268,0.12281002,97610.0,97609.0,0.052242]
[1734796200761,0.11285002,97610.0,97609.0,0.052242]
[1734796201881,0.36868529,97705.0,97605.0,0.01036225]
[1734796201882,0.153516,97617.0,97616.0,0.051239]
[1734796202072,0.153516,97617.0,97612.0,0.05124]
[1734796202375,0.153516,97617.0,97609.0,0.001]
[1734796202376,0.05124,97613.0,97609.0,0.001]
[1734796202568,0.05124,97613.0,97610.0,0.051242]
[1734796202764,0.051239,97616.0,97609.0,0.001]
[1734796203064,0.051241,97612.0,97609.0,0.052242]
[1734796203265,0.051241,97612.0,97609.0,0.051242]
[1734796203562,0.051241,97612.0,97610.0,0.051242]
[1734796204672,0.09208371,97611.0,97610.0,0.051242]
[1734796206072,0.002,97611.0,97610.0,0.052242]
[1734796208970,0.002,97611.0,97610.0,0.001]
[1734796211877,0.05124,97615.0,97609.0,0.051242]
[1734796212079,0.002,97611.0,97609.0,0.051242]
[1734796214377,0.051242,97609.0,97605.0,0.19268641]
[1734796214572,0.051243,97608.0,97605.0,0.18254876]
[1734796215085,0.051244,97607.0,97605.0,0.18254876]
[1734796215490,0.051244,97605.0,97603.0,0.18254876]
[1734796215785,0.0396,97606.0,97605.0,0.051244]
[1734796215987,0.002,97608.0,97603.0,0.18254876]
[1734796216177,0.002,97608.0,97607.0,0.051243]
[1734796216483,0.153516,97615.0,97611.0,0.051241]
[1734796216686,0.54402746,97621.0,97603.0,0.54478876]
[1734796216687,0.153516,97621.0,97605.0,0.30824029]
[1734796216879,0.153516,97621.0,97612.0,0.3608]
[1734796217182,0.153516,97621.0,97620.0,0.051236]
[1734796218379,0.051233,97626.0,97621.0,0.051236]
[1734796218589,0.051233,97626.0,97622.0,0.051235]
[1734796218888,0.051233,97626.0,97618.0,0.18264582]
[1734796218889,0.051233,97626.0,97624.0,0.051234]
[1734796219187,0.153516,97629.0,97620.0,0.001]
[1734796219487,0.153516,97629.0,97628.0,0.051232]
[1734796220291,0.155516,97629.0,97628.0,0.051232]
[1734796221480,0.002,97629.0,97628.0,0.051232]
[1734796221680,0.05123,97633.0,97624.0,0.60426051]
[1734796221880,0.05123,97632.0,97630.0,0.051231]
[1734796222977,0.094029,97632.0,97630.0,0.001]
[1734796223191,0.094029,97632.0,97631.0,0.05123]
[1734796224388,0.002,97632.0,97631.0,0.05123]
[1734796224584,0.002,97632.0,97625.0,0.24210051]
[1734796224982,0.002,97632.0,97631.0,0.051231]
[1734796225190,0.06613978,97641.0,97625.0,0.25243025]
[1734796225485,0.002,97632.0,97631.0,0.052231]
[1734796225783,0.3608,97643.0,97640.0,0.051226]
[1734796226476,0.002,97641.0,97640.0,0.051226]
[1734796227983,0.45471181,97643.0,97640.0,0.052226]
[1734796228384,0.45271181,97643.0,97640.0,0.051226]
[1734796228692,0.002,97641.0,97640.0,0.052226]
[1734796229091,0.09191181,97642.0,97640.0,0.052226]
[1734796229978,0.09191181,97642.0,97641.0,0.3608]
[1734796230489,0.09391181,97643.0,97641.0,0.3608]
[1734796230683,0.09391181,97643.0,97642.0,0.051225]
[1734796230990,0.09191181,97643.0,97642.0,0.051225]
[1734796231579,0.09391181,97643.0,97642.0,0.051225]
[1734796232086,0.09191181,97643.0,97642.0,0.051225]
[1734796232285,0.09391181,97643.0,97642.0,0.052225]
[1734796232509,0.002,97643.0,97642.0,0.052225]
[1734796233079,0.09191181,97659.0,97647.0,0.051222]
[1734796233279,0.09191181,97659.0,97647.0,0.412022]
[1734796234195,0.00353695,97648.0,97647.0,0.413022]
[1734796234693,0.09191181,97669.0,97668.0,0.051211]
[1734796235691,0.09191181,97682.0,97681.0,0.051204]
[1734796237094,0.09191181,97682.0,97668.0,0.001]
[1734796237284,0.051205,97681.0,97675.0,0.051208]
[1734796237595,0.05121,97670.0,97668.0,0.01029698]
[1734796237899,0.3608,97681.0,97668.0,0.051211]
[1734796238089,0.1006529,97680.0,97663.0,0.3608]
[1734796238294,0.1006529,97680.0,97668.0,0.001]
[1734796238495,0.051209,97674.0,97668.0,0.001]
[1734796238699,0.051209,97674.0,97667.0,0.051212]
[1734796239200,0.0789,97673.0,97670.0,0.05121]
[1734796239401,0.3608,97689.0,97663.0,0.37106004]
[1734796239402,0.3608,97681.0,97676.0,0.051207]
[1734796240092,0.3608,97681.0,97677.0,0.051206]
[1734796240292,0.3608,97681.0,97668.0,0.001]
[1734796240598,0.3608,97681.0,97678.0,0.051206]
[1734796240898,0.051204,97683.0,97678.0,0.051206]
[1734796241396,0.09191181,97687.0,97680.0,0.051204]
[1734796241896,0.09191181,97687.0,97682.0,0.051204]
[1734796242093,0.09191181,97687.0,97686.0,0.051202]
[1734796242703,0.0789,97688.0,97686.0,0.051202]
[1734796244300,0.0789,97688.0,97682.0,0.06152101]
[1734796244600,0.0789,97688.0,97686.0,0.001]
[1734796245803,0.0398,97688.0,97686.0,0.052202]
[1734796247900,0.0398,97688.0,97686.0,0.051202]
[1734796249010,0.0398,97688.0,97678.0,0.0102031]
[1734796249202,0.0398,97688.0,97680.0,0.051205]
[1734796249203,0.051202,97686.0,97680.0,0.051205]
[1734796249404,0.051202,97686.0,97681.0,0.051204]
[1734796249593,0.051202,97686.0,97675.0,0.3608]
[1734796249994,0.051202,97686.0,97683.0,0.051203]
[1734796250901,0.0398,97688.0,97667.0,0.18237795]
[1734796250902,0.3608,97684.0,97667.0,0.18237795]
[1734796251090,0.051206,97679.0,97673.0,0.051208]
[1734796252005,0.051206,97679.0,97661.0,0.24363639]
[1734796252006,0.0419,97678.0,97674.0,0.051208]
[1734796252203,0.093106,97678.0,97674.0,0.051208]
[1734796253004,0.051207,97676.0,97673.0,0.001]
[1734796253203,0.051208,97674.0,97673.0,0.001]
[1734796253408,0.051208,97674.0,97673.0,0.002]
[1734796253999,0.0385,97675.0,97673.0,0.001]
[1734796254308,0.0385,97675.0,97674.0,0.001]
[1734796255113,0.0385,97675.0,97670.0,0.05121]
[1734796255403,0.051208,97674.0,97670.0,0.05121]
[1734796256105,0.0385,97675.0,97670.0,0.01051196]
[1734796256302,0.051209,97672.0,97661.0,0.18391383]
[1734796256495,0.051209,97672.0,97666.0,0.051212]
[1734796256699,0.0395,97671.0,97662.0,0.051214]
[1734796256905,0.0395,97671.0,97666.0,0.051212]
[1734796257506,0.0395,97671.0,97667.0,0.051212]
[1734796258010,0.0395,97671.0,97669.0,0.05121]
[1734796260498,0.0395,97671.0,97663.0,0.37095482]
[1734796260812,0.0395,97671.0,97669.0,0.05121]
[1734796263310,0.09191181,97673.0,97664.0,0.18237795]
[1734796263509,0.09191181,97673.0,97671.0,0.051209]
[1734796264503,0.12255265,97677.0,97671.0,0.051209]
[1734796265213,0.412008,97674.0,97671.0,0.051209]
[1734796265711,0.051209,97673.0,97669.0,0.18237795]
[1734796265909,0.17376165,97673.0,97666.0,0.051212]
[1734796266307,0.17376165,97673.0,97665.0,0.18237795]
[1734796266511,0.17376165,97673.0,97667.0,0.051211]
[1734796266706,0.12255265,97673.0,97670.0,0.05121]
[1734796266906,0.12255265,97673.0,97671.0,0.05121]
[1734796267606,0.48335265,97674.0,97671.0,0.05121]
[1734796268008,0.48335265,97674.0,97665.0,0.18237795]
[1734796268206,0.48335265,97674.0,97672.0,0.051209]
[1734796268715,0.3608,97674.0,97672.0,0.051209]
[1734796269600,0.412008,97674.0,97666.0,0.051212]
[1734796269911,0.051213,97666.0,97664.0,0.18237795]
[1734796270115,0.4429,97665.0,97664.0,0.18237795]
[1734796271210,0.4429,97665.0,97658.0,0.051216]
[1734796271437,0.4429,97665.0,97659.0,0.051216]
[1734796271718,0.4429,97665.0,97664.0,0.001]
[1734796271917,0.4429,97665.0,97664.0,0.002]
[1734796273115,0.18322746,97675.0,97664.0,0.001]
[1734796273423,0.18322746,97675.0,97673.0,0.051209]
[1734796273609,0.18322746,97677.0,97676.0,0.051207]
[1734796275020,0.3608,97684.0,97683.0,0.051203]
[1734796275615,0.09190751,97685.0,97683.0,0.051203]
[1734796276210,0.09190751,97685.0,97683.0,0.052203]
[1734796276515,0.09190751,97687.0,97686.0,0.051202]
[1734796277812,0.09190751,97687.0,97683.0,0.001]
[1734796277813,0.09190751,97690.0,97687.0,0.051201]
[1734796278011,0.09190751,97690.0,97689.0,0.0512]
[1734796279113,0.14310651,97692.0,97689.0,0.0522]
[1734796279314,0.14310651,97692.0,97689.0,0.001]
[1734796279512,0.0512,97690.0,97689.0,0.001]
[1734796279717,0.45270751,97692.0,97689.0,0.001]
[1734796280321,0.3608,97692.0,97689.0,0.001]
[1734796282718,0.3608,97692.0,97690.0,0.051199]
[1734796284720,0.3608,97692.0,97690.0,0.052199]
[1734796287317,0.12254335,97695.0,97690.0,0.052199]
[1734796287520,0.12254335,97695.0,97691.0,0.051199]
[1734796288522,0.12254335,97695.0,97692.0,0.051199]
[1734796288923,0.12254335,97695.0,97693.0,0.051198]
[1734796289326,0.0918498,97695.0,97693.0,0.051198]
[1734796290522,0.0918498,97696.0,97693.0,0.051198]
[1734796290820,0.0918498,97696.0,97691.0,0.001]
[1734796291027,0.051197,97695.0,97691.0,0.001]
[1734796291423,0.051197,97695.0,97691.0,0.052199]
[1734796291725,0.051197,97695.0,97692.0,0.001]
[1734796292126,0.12254335,97696.0,97695.0,0.051197]
[1734796293028,0.0383,97697.0,97695.0,0.051197]
[1734796293228,0.12254335,97698.0,97697.0,0.051196]
[1734796294830,0.1,97700.0,97699.0,0.051195]
[1734796296427,0.1,97700.0,97699.0,0.052195]
[1734796302027,0.12254335,97704.0,97703.0,0.051193]
[1734796302230,0.12254335,97704.0,97703.0,0.411993]
[1734796302730,0.00153579,97712.0,97703.0,0.051193]
[1734796302923,0.051192,97705.0,97704.0,0.051192]
[1734796303324,0.051194,97700.0,97699.0,0.001]
[1734796304534,0.091092,97704.0,97703.0,0.001]
[1734796305130,0.051196,97697.0,97696.0,0.24372963]
[1734796305419,0.193127,97704.0,97688.0,0.23407527]
[1734796306323,0.244319,97704.0,97703.0,0.001]
[1734796306931,0.091092,97704.0,97703.0,0.001]
[1734796307328,0.051192,97704.0,97703.0,0.001]
[1734796307529,0.051191,97706.0,97703.0,0.001]
[1734796307734,0.051192,97705.0,97700.0,0.051194]
[1734796307926,0.18322746,97709.0,97695.0,0.051197]
[1734796308123,0.15326688,97706.0,97695.0,0.051197]
[1734796308529,0.051192,97705.0,97703.0,0.001]
[1734796309050,0.051192,97705.0,97698.0,0.051195]
[1734796309342,0.051192,97705.0,97700.0,0.051194]
[1734796309536,0.17378829,97705.0,97701.0,0.18287427]
[1734796311034,0.09194036,97703.0,97700.0,0.051194]
[1734796311629,0.09194036,97703.0,97701.0,0.001]
[1734796312435,0.09194036,97703.0,97700.0,0.052194]
[1734796312636,0.051192,97705.0,97700.0,0.052194]
[1734796312637,0.09194036,97704.0,97700.0,0.052194]
[1734796312938,0.09194036,97704.0,97701.0,0.001]
[1734796314142,0.09194036,97702.0,97701.0,0.001]
[1734796314739,0.09194036,97702.0,97700.0,0.052194]
[1734796315249,0.09194036,97702.0,97701.0,0.001]
[1734796315935,0.09194036,97702.0,97700.0,0.052194]
[1734796316334,0.12259629,97706.0,97701.0,0.001]
[1734796316534,0.12259629,97706.0,97703.0,0.051193]
[1734796316932,0.12259629,97706.0,97704.0,0.051192]
[1734796317738,0.12259629,97707.0,97704.0,0.051192]
[1734796318534,0.12259629,97707.0,97704.0,0.052192]
[1734796318927,0.12259629,97707.0,97704.0,0.051192]
[1734796319123,0.12259629,97707.0,97704.0,0.052192]
[1734796320029,0.12259629,97707.0,97705.0,0.051192]
[1734796321023,0.12259629,97707.0,97705.0,0.052192]
[1734796322242,0.0806,97711.0,97705.0,0.052192]
[1734796322243,0.12259629,97708.0,97705.0,0.052192]
[1734796322428,0.12259629,97708.0,97706.0,0.051191]
[1734796324047,0.12259629,97708.0,97706.0,0.052191]
[1734796324830,0.12259629,97709.0,97706.0,0.052191]
[1734796325025,0.05119,97708.0,97706.0,0.052191]
[1734796325837,0.051191,97707.0,97706.0,0.001]
[1734796327338,0.12259629,97709.0,97706.0,0.001]
[1734796327538,0.15326688,97709.0,97706.0,0.001]
[1734796328744,0.15326688,97709.0,97704.0,0.051192]
[1734796328935,0.05119,97708.0,97706.0,0.001]
[1734796329137,0.12265223,97707.0,97706.0,0.001]
[1734796330242,0.12265223,97707.0,97700.0,0.18287427]
[1734796330445,0.411994,97702.0,97695.0,0.051197]
[1734796330636,0.3608,97702.0,97693.0,0.18287427]
[1734796330836,0.051197,97695.0,97693.0,0.18287427]
[1734796331043,0.0406,97694.0,97693.0,0.18287427]
[1734796331235,0.051197,97696.0,97693.0,0.18287427]
[1734796331639,0.051197,97696.0,97695.0,0.001]
[1734796332037,0.051197,97696.0,97692.0,0.051198]
[1734796332342,0.051197,97695.0,97692.0,0.051198]
[1734796332544,0.051198,97693.0,97691.0,0.18287427]
[1734796333247,0.0389,97694.0,97676.0,0.40495077]
[1734796333248,0.411999,97692.0,97690.0,0.24372963]
[1734796334246,0.0512,97691.0,97686.0,0.18299468]
[1734796334939,0.0512,97690.0,97686.0,0.18299468]
[1734796335336,0.0512,97690.0,97686.0,0.18499468]
[1734796335840,0.0512,97690.0,97686.0,0.18599468]
[1734796335841,0.12268712,97687.0,97686.0,0.18599468]
[1734796337348,0.0512,97690.0,97686.0,0.003]
[1734796338037,0.0512,97690.0,97686.0,0.002]
[1734796338240,0.09198902,97687.0,97686.0,0.004]
[1734796339058,0.09198902,97687.0,97686.0,0.002]
[1734796339939,0.09198902,97687.0,97686.0,0.004]
[1734796340540,0.09198902,97687.0,97686.0,0.003]
[1734796340734,0.09198902,97687.0,97686.0,0.008]
[1734796341139,0.051201,97688.0,97686.0,0.008]
[1734796342640,0.051201,97688.0,97686.0,0.006]
[1734796343349,0.051201,97688.0,97686.0,0.003]
[1734796344950,0.14319002,97688.0,97686.0,0.003]
[1734796346246,0.051201,97688.0,97686.0,0.003]
[1734796347852,0.0616063,97688.0,97686.0,0.003]
[1734796348243,0.0616063,97688.0,97677.0,0.18299468]
[1734796348546,0.051206,97678.0,97673.0,0.24372963]
[1734796348751,0.412008,97674.0,97673.0,0.24372963]
[1734796349743,0.05121,97671.0,97650.0,0.24526568]
[1734796350149,0.05121,97671.0,97653.0,0.051219]
[1734796350351,0.05121,97671.0,97651.0,0.01048944]
[1734796351156,0.05121,97671.0,97670.0,0.00913246]
[1734796351549,0.09151,97671.0,97670.0,0.00913246]
[1734796351749,0.17311,97671.0,97670.0,0.00913246]
[1734796351950,0.17311,97671.0,97670.0,0.01513246]
[1734796353948,0.13151,97671.0,97670.0,0.01513246]
[1734796357346,0.05121,97671.0,97670.0,0.01513246]
[1734796360259,0.05122,97652.0,97650.0,0.00153605]
[1734796360459,0.051224,97644.0,97643.0,0.24372963]
[1734796360855,0.051213,97666.0,97643.0,0.24372963]
[1734796361162,0.051217,97658.0,97649.0,0.051221]
[1734796361359,0.051217,97658.0,97652.0,0.05122]
[1734796361571,0.20455649,97658.0,97652.0,0.05122]
[1734796362969,0.051217,97658.0,97652.0,0.05122]
[1734796363855,0.052217,97658.0,97652.0,0.05122]
[1734796364052,0.09175478,97661.0,97650.0,0.40126]
[1734796364053,0.09175478,97661.0,97656.0,0.051217]
[1734796364356,0.00011801,97665.0,97664.0,0.051213]
[1734796364860,0.12233971,97668.0,97667.0,0.051212]
[1734796365057,0.12233971,97668.0,97667.0,0.412012]
[1734796366071,0.051206,97679.0,97675.0,0.051207]
[1734796366263,0.051206,97679.0,97676.0,0.3608]
[1734796367261,0.051206,97679.0,97676.0,0.412007]
[1734796368272,0.051206,97679.0,97677.0,0.0364]
[1734796370967,0.051206,97679.0,97677.0,0.087607]
[1734796374068,0.051206,97679.0,97677.0,0.09766425]
[1734796374963,0.054206,97679.0,97677.0,0.09766425]
[1734796375167,0.055206,97679.0,97677.0,0.09766425]
[1734796376171,0.055206,97679.0,97677.0,0.04645725]
[1734796376378,0.052206,97679.0,97678.0,0.051206]
[1734796377873,0.051206,97678.0,97677.0,0.04645725]
[1734796378175,0.051206,97678.0,97677.0,0.0364]
[1734796378574,0.001,97679.0,97677.0,0.0364]
[1734796378773,0.001,97679.0,97678.0,0.051206]
[1734796379473,0.12233971,97696.0,97678.0,0.3378]
[1734796379783,0.12233971,97696.0,97695.0,0.411997]
[1734796380578,0.12333971,97696.0,97695.0,0.411997]
[1734796380777,0.003,97696.0,97695.0,0.411997]
[1734796381175,0.12233971,97708.0,97695.0,0.411997]
[1734796381375,0.12233971,97708.0,97707.0,0.051191]
[1734796382381,0.05119,97709.0,97707.0,0.051191]
[1734796382681,0.051193,97703.0,97701.0,0.051194]
[1734796382872,0.3608,97705.0,97695.0,0.052197]
[1734796383079,0.051196,97697.0,97695.0,0.001]
[1734796383281,0.3987,97696.0,97695.0,0.001]
[1734796383478,0.3987,97696.0,97687.0,0.3608]
[1734796383787,0.051202,97686.0,97684.0,0.24372963]
[1734796383992,0.0354,97685.0,97684.0,0.24372963]
[1734796384679,0.051206,97679.0,97672.0,0.052569]
[1734796384877,0.051206,97679.0,97672.0,0.051209]
[1734796385283,0.051207,97676.0,97667.0,0.051212]
[1734796386582,0.0371,97679.0,97663.0,0.24372963]
[1734796386583,0.051213,97664.0,97663.0,0.24372963]
[1734796386773,0.412013,97664.0,97663.0,0.24372963]
[1734796386978,0.412013,97664.0,97641.0,0.0358]
[1734796386979,0.412013,97664.0,97653.0,0.24372963]
[1734796387883,0.413013,97664.0,97663.0,0.007]
[1734796389482,0.412013,97664.0,97656.0,0.051217]
[1734796389687,0.413013,97664.0,97663.0,0.003]
[1734796390075,0.412013,97664.0,97663.0,0.009]
[1734796390281,0.413013,97664.0,97663.0,0.009]
[1734796390483,0.413013,97664.0,97663.0,0.006]
[1734796392182,0.413013,97664.0,97663.0,0.009]
[1734796392384,0.3618,97664.0,97655.0,0.3608]
[1734796392591,0.3608,97656.0,97642.0,0.24372963]
[1734796392786,0.0362,97655.0,97642.0,0.24372963]
[1734796392985,0.05122,97652.0,97643.0,0.051224]
[1734796393484,0.05122,97652.0,97642.0,0.24372963]
[1734796393789,0.05122,97651.0,97644.0,0.01053599]
[1734796393981,0.3608,97648.0,97644.0,0.01053599]
[1734796394181,0.051223,97645.0,97644.0,0.00153599]
[1734796394382,0.051223,97645.0,97644.0,0.01053599]
[1734796395087,0.051223,97645.0,97644.0,0.01653599]
[1734796395891,0.051223,97645.0,97644.0,0.01053599]
[1734796396092,0.052223,97645.0,97644.0,0.01653599]
[1734796396284,0.052223,97645.0,97644.0,0.00753599]
[1734796396483,0.053223,97645.0,97644.0,0.01553599]
[1734796400188,0.051231,97630.0,97615.0,0.0355]
[1734796400381,0.051231,97630.0,97622.0,0.051235]
[1734796400582,0.3608,97632.0,97624.0,0.051234]
[1734796400895,0.10070149,97638.0,97624.0,0.051234]
[1734796401086,0.051229,97635.0,97624.0,0.051234]
[1734796401483,0.001,97630.0,97624.0,0.051234]
[1734796402290,0.052229,97635.0,97624.0,0.051234]
[1734796402495,0.001,97635.0,97618.0,0.09684923]
[1734796402680,0.10070149,97630.0,97622.0,0.002]
[1734796402884,0.15193249,97630.0,97622.0,0.002]
[1734796403086,0.15393249,97630.0,97623.0,0.051235]
[1734796403281,0.10270149,97630.0,97618.0,0.01021223]
[1734796403499,0.3608,97623.0,97605.0,0.60588963]
[1734796403697,0.051237,97619.0,97609.0,0.051242]
[1734796403886,0.051237,97619.0,97612.0,0.06161752]
[1734796404681,0.051237,97619.0,97612.0,0.01037752]
[1734796404886,0.051237,97619.0,97617.0,0.00207529]
[1734796405495,0.051237,97619.0,97617.0,7.529e-05]
[1734796405693,0.055237,97619.0,97617.0,7.529e-05]
[1734796405888,0.063237,97619.0,97617.0,0.00107529]
[1734796406983,0.059237,97619.0,97617.0,7.529e-05]
[1734796407190,0.055237,97619.0,97617.0,7.529e-05]
[1734796407391,0.057237,97619.0,97617.0,7.529e-05]
[1734796408097,0.059237,97619.0,97617.0,7.529e-05]
[1734796408689,0.063237,97619.0,97617.0,0.00107529]
[1734796409283,0.058237,97619.0,97617.0,7.529e-05]
[1734796409791,0.064237,97619.0,97617.0,7.529e-05]
[1734796410398,0.061237,97619.0,97617.0,7.529e-05]
[1734796410801,0.058237,97619.0,97617.0,7.529e-05]
[1734796411511,0.057237,97619.0,97617.0,7.529e-05]
[1734796411799,0.063237,97619.0,97617.0,0.00107529]
[1734796412594,0.051245,97605.0,97600.0,0.151247]
[1734796413498,0.00011518,97604.0,97600.0,0.151247]
[1734796414404,0.00011518,97604.0,97601.0,0.01033355]
[1734796414702,0.00011518,97604.0,97600.0,0.151247]
[1734796415101,0.05136018,97604.0,97602.0,0.00953673]
[1734796415594,0.05136018,97604.0,97602.0,0.00453673]
[1734796415795,0.05236018,97604.0,97602.0,0.00953673]
[1734796415991,0.00111518,97604.0,97602.0,0.00953673]
[1734796418698,0.05236018,97604.0,97602.0,0.00953673]
[1734796422000,0.0364,97603.0,97602.0,0.00953673]
[1734796422313,0.3972,97603.0,97602.0,0.00953673]
[1734796422704,0.3972,97603.0,97602.0,0.00453673]
[1734796422899,0.3972,97603.0,97602.0,0.00953673]
[1734796423503,0.3972,97603.0,97602.0,0.00653673]
[1734796423704,0.3972,97603.0,97602.0,0.00953673]
[1734796424698,0.3972,97603.0,97602.0,0.008]
[1734796424899,0.3982,97603.0,97602.0,0.008]
[1734796429910,0.0374,97603.0,97602.0,0.008]
[1734796440013,0.088645,97603.0,97602.0,0.008]
[1734796442209,0.57178471,97603.0,97602.0,0.008]
[1734796443618,0.449445,97603.0,97602.0,0.008]
[1734796445115,0.088645,97603.0,97602.0,0.008]
[1734796445303,0.001,97603.0,97602.0,0.059246]
[1734796451213,0.052245,97603.0,97602.0,0.008]
[1734796451611,0.17515075,97603.0,97602.0,0.008]
[1734796452013,0.21075075,97603.0,97601.0,0.01603677]
[1734796452217,0.0705,97602.0,97601.0,0.01603677]
[1734796452415,0.051246,97601.0,97600.0,0.1]
[1734796452613,0.05125,97595.0,97594.0,0.30262564]
[1734796452816,0.41205,97595.0,97594.0,0.30262564]
[1734796453315,0.3608,97595.0,97581.0,0.30262564]
[1734796453517,0.20140298,97591.0,97581.0,0.30262564]
[1734796453727,0.051254,97586.0,97581.0,0.30262564]
[1734796454117,0.20140298,97591.0,97581.0,0.30262564]
[1734796454313,0.051256,97583.0,97581.0,0.30262564]
[1734796454623,0.051256,97583.0,97581.0,0.30762564]
[1734796454823,0.051256,97583.0,97581.0,0.005]
[1734796455027,9.074e-05,97582.0,97581.0,0.012]
[1734796455729,0.03779074,97582.0,97581.0,0.012]
[1734796456219,0.03779074,97582.0,97581.0,0.007]
[1734796456426,0.19137682,97582.0,97581.0,0.007]
[1734796456631,0.19137682,97582.0,97567.0,0.00153736]
[1734796456632,0.051263,97570.0,97567.0,0.00153736]
[1734796457221,0.051263,97570.0,97560.0,0.30262564]
[1734796457725,0.05127,97557.0,97547.0,0.33992564]
[1734796458027,0.051272,97553.0,97547.0,0.30262564]
[1734796458325,0.051272,97552.0,97547.0,0.30262564]
[1734796458716,0.00013222,97551.0,97547.0,0.31274158]
[1734796459223,0.00013222,97551.0,97547.0,0.01011594]
[1734796459421,0.00013222,97551.0,97546.0,0.051275]
[1734796459819,0.00013222,97551.0,97547.0,0.002]
[1734796460616,0.00113222,97551.0,97546.0,0.053275]
[1734796460819,0.00213222,97551.0,97546.0,0.053275]
[1734796461530,0.00213222,97551.0,97547.0,0.002]
[1734796461719,0.05340522,97551.0,97547.0,0.002]
[1734796462821,0.05340522,97551.0,97546.0,0.002]
[1734796463026,0.00213222,97551.0,97546.0,0.002]
[1734796463220,0.051274,97548.0,97546.0,0.002]
[1734796463619,0.00113222,97551.0,97539.0,0.051279]
[1734796463826,0.00213222,97551.0,97547.0,0.002]
[1734796464129,0.051274,97548.0,97547.0,0.002]
[1734796464529,0.051275,97547.0,97546.0,0.002]
[1734796466634,0.05128,97537.0,97531.0,0.0361]
[1734796468821,0.051281,97536.0,97531.0,0.0361]
[1734796469021,0.051282,97534.0,97531.0,0.0361]
[1734796469333,0.051282,97534.0,97531.0,0.0381]
[1734796469521,0.051283,97533.0,97531.0,0.0381]
[1734796469722,0.412083,97533.0,97531.0,0.002]
[1734796469923,0.08748606,97532.0,97531.0,0.002]
[1734796470227,0.03620306,97532.0,97510.0,0.3608]
[1734796470535,0.051289,97520.0,97510.0,0.3608]
[1734796470723,0.10070149,97522.0,97510.0,0.3608]
[1734796471031,0.10070149,97522.0,97512.0,0.01012765]
[1734796471833,0.10070149,97522.0,97512.0,8.172e-05]
[1734796472030,0.05129,97518.0,97512.0,8.172e-05]
[1734796472426,0.051291,97516.0,97512.0,8.172e-05]
[1734796472827,0.051292,97515.0,97512.0,8.172e-05]
[1734796474133,0.052292,97515.0,97512.0,8.172e-05]
[1734796474337,0.051293,97514.0,97512.0,8.172e-05]
[1734796475629,0.052293,97514.0,97512.0,8.172e-05]
[1734796475825,0.053293,97514.0,97512.0,8.172e-05]
[1734796476436,0.052293,97514.0,97512.0,8.172e-05]
[1734796483333,0.00011352,97513.0,97512.0,8.172e-05]
[1734796484943,0.00211352,97513.0,97512.0,8.172e-05]
[1734796485143,0.00411352,97513.0,97512.0,8.172e-05]
[1734796485340,0.00211352,97513.0,97512.0,8.172e-05]
[1734796485659,0.00711352,97513.0,97512.0,8.172e-05]
[1734796486538,0.00911352,97513.0,97512.0,8.172e-05]
[1734796488244,0.04361352,97513.0,97512.0,8.172e-05]
[1734796488447,0.09490652,97513.0,97512.0,8.172e-05]
[1734796497548,0.06040652,97513.0,97512.0,8.172e-05]
[1734796497748,0.00911352,97513.0,97512.0,8.172e-05]
[1734796498053,0.00911352,97513.0,97512.0,0.05137472]
[1734796499450,0.09209008,97520.0,97519.0,0.051289]
[1734796499951,0.12272852,97526.0,97519.0,0.051289]
[1734796499952,0.12272852,97526.0,97525.0,0.051286]
[1734796500150,0.12272852,97526.0,97525.0,0.412086]
[1734796500350,8.152e-05,97526.0,97525.0,0.3608]
[1734796500554,8.152e-05,97526.0,97525.0,0.412086]
[1734796501744,0.00908152,97526.0,97525.0,0.412086]
[1734796501952,0.00908152,97526.0,97525.0,0.98844982]
[1734796502334,0.01508152,97526.0,97525.0,0.93716382]
[1734796503545,0.01508152,97526.0,97525.0,0.3608]
[1734796503943,0.051289,97520.0,97519.0,0.3061926]
[1734796505152,0.051291,97516.0,97515.0,0.3061926]
[1734796506449,0.12272852,97516.0,97512.0,8.172e-05]
[1734796506649,0.412093,97513.0,97512.0,8.172e-05]
[1734796507749,0.417093,97513.0,97512.0,8.172e-05]
[1734796508154,0.420093,97513.0,97512.0,8.172e-05]
[1734796509953,0.3688,97513.0,97512.0,8.172e-05]
[1734796510156,0.008,97513.0,97512.0,0.05137472]
[1734796510851,0.15358608,97517.0,97516.0,0.051291]
[1734796511856,8.152e-05,97526.0,97524.0,0.051287]
[1734796513055,8.152e-05,97526.0,97521.0,0.5440835]
[1734796513248,0.051288,97522.0,97521.0,0.1832835]
[1734796514550,0.1332529,97523.0,97512.0,8.172e-05]
[1734796514754,0.051293,97513.0,97512.0,8.172e-05]
[1734796516055,0.12275342,97517.0,97512.0,8.172e-05]
[1734796516256,0.12275342,97517.0,97512.0,0.05137472]
[1734796516461,0.17404442,97517.0,97512.0,0.05137472]
[1734796516756,0.004,97513.0,97512.0,0.00108172]
[1734796517346,0.051292,97514.0,97512.0,0.00208172]
[1734796517551,0.051292,97514.0,97512.0,0.00108172]
[1734796517952,0.004,97513.0,97512.0,8.172e-05]
[1734796518354,0.007,97513.0,97512.0,8.172e-05]
[1734796518559,0.051296,97506.0,97505.0,0.1832835]
[1734796518953,0.051298,97503.0,97502.0,0.1832835]
[1734796519461,0.003,97513.0,97502.0,0.1832835]